fUSD/lending_fUSD_20260701
["ID","MTS","AMOUNT","RATE_DAILY","PERIOD"]
[426830109,1782915047000,-500.0,0.00014999,2]
[426830110,1782915047000,-500.0,0.00014999,2]
[426830108,1782915047000,-500.0,0.00014999,2]
[426830107,1782915047000,-500.0,0.00014999,2]
[426830106,1782915047000,-516.45498593,0.00014999,2]
[426830102,1782915047000,-294.12807726,0.00014999,2]
[426830105,1782915047000,-500.0,0.00014999,2]
[426830101,1782915047000,-500.0,0.00014999,2]
[426830103,1782915047000,-500.0,0.00014999,2]
[426830099,1782915047000,-500.0,0.00014999,2]
[426830098,1782915047000,-500.0,0.00014999,2]
[426830100,1782915047000,-340.8690979,0.00014999,2]
[426830114,1782915047000,-513.64458141,0.00014999,2]
[426830104,1782915047000,-500.0,0.00014999,2]
[426830116,1782915047000,-531.03275732,0.00014999,2]
[426830125,1782915047000,-500.0,0.00014999,2]
[426830115,1782915047000,-500.0,0.00014999,2]
[426830133,1782915047000,-697.81875677,0.00015,2]
[426830132,1782915047000,-1526.2985976,0.00015,2]
[426830131,1782915047000,-89111.43369027,0.00015,2]
[426830130,1782915047000,-31512.68512077,0.00015,2]
[426830129,1782915047000,-66438.16255097,0.00015,2]
[426830124,1782915047000,-500.0,0.00014999,2]
[426830126,1782915047000,-500.0,0.00014999,2]
[426830127,1782915047000,-693.27,0.00014999,2]
[426830123,1782915047000,-500.0,0.00014999,2]
[426830120,1782915047000,-500.0,0.00014999,2]
[426830122,1782915047000,-500.0,0.00014999,2]
[426830121,1782915047000,-500.0,0.00014999,2]
[426830118,1782915047000,-500.0,0.00014999,2]
[426830119,1782915047000,-500.0,0.00014999,2]
[426830117,1782915047000,-500.0,0.00014999,2]
[426830128,1782915047000,-693.27,0.00014999,2]
[426830113,1782915047000,-500.0,0.00014999,2]
[426830168,1782915050000,264.24,0.0002863,30]
[426830169,1782915050000,162.92,0.0002863,30]
[426830170,1782915051000,264.24,0.00029132,30]
[426830171,1782915051000,162.92,0.00029195,30]
[426830172,1782915051000,77077.13960241,0.0003,30]
[426830173,1782915076000,500.0,0.00013923,2]
[426830176,1782915086000,151.75,0.0002863,30]
[426830175,1782915086000,158.88,0.0002863,30]
[426830174,1782915086000,152.8,0.0002863,30]
[426830178,1782915087000,151.75,0.00029132,30]
[426830177,1782915087000,152.8,0.00029195,30]
[426830179,1782915099000,421.0962266,0.00030137,30]
[426830180,1782915106000,400.0,0.00030137,30]
[426830181,1782915131000,157.51,0.0002863,30]
[426830182,1782915131000,159.8,0.0002863,30]
[426830183,1782915153000,152.69,0.0002863,30]
[426830184,1782915154000,152.69,0.00029275,30]
[426830185,1782915156000,-200.03,0.00014247,2]
[426830186,1782915156000,-2643.0766,0.00014399,2]
[426830187,1782915156000,-1431.08303494,0.00014499,2]
[426830188,1782915156000,-237.02923743,0.00014599,2]
[426830189,1782915156000,-33357.4706,0.00014699,2]
[426830190,1782915156000,-2500.0,0.00014699,2]
[426830194,1782915156000,-500.0,0.00014999,2]
[426830193,1782915156000,-500.0,0.00014999,2]
[426830191,1782915156000,-9646.0471237,0.00014964,2]
[426830195,1782915156000,-150.0,0.00014999,2]
[426830196,1782915156000,-1367.33,0.00014999,2]
[426830192,1782915156000,-500.0,0.00014999,2]
[426830197,1782915156000,-81584.08314735,0.00015,2]
[426830198,1782915176000,161.37,0.0002863,30]
[426830200,1782915176000,166.77,0.0002863,30]
[426830199,1782915176000,271.14,0.0002863,30]
[426830201,1782915177000,271.14,0.00029132,30]
[426830202,1782915177000,166.77,0.00029132,30]
[426830204,1782915178000,166.77,0.00029634,30]
[426830203,1782915178000,271.14,0.00029634,30]
[426830205,1782915204000,155.55,0.00028871,30]
[426830206,1782915205000,155.59,0.00029232,30]
[426830207,1782915206000,155.55,0.00026027,30]
[426830210,1782915221000,159.27,0.0002863,30]
[426830209,1782915221000,160.25,0.0002863,30]
[426830208,1782915221000,160.79,0.0002863,30]
[426830211,1782915222000,160.25,0.00029275,30]
[426830214,1782915276000,158.4,0.0002863,30]
[426830213,1782915276000,155.82,0.0002863,30]
[426830212,1782915276000,160.06,0.0002863,30]
[426830215,1782915277000,158.4,0.00029383,30]
[426830216,1782915281000,231.60500551,0.000219,30]
[426830217,1782915283000,179.72,0.00029232,30]
[426830218,1782915284000,161.74,0.00027397,30]
[426830220,1782915345000,161.3,0.0002863,30]
[426830222,1782915352000,161.08,0.0002863,30]
[426830221,1782915352000,181.82,0.00029232,30]
[426830223,1782915353000,161.08,0.00029275,30]
[426830224,1782915354000,160.5,0.0002863,30]
[426830225,1782915356000,161.98,0.0002863,30]
[426830228,1782915363000,-500.0,0.00013923,2]
[426830227,1782915363000,-250.0,0.00013888,2]
[426830226,1782915363000,-1870.709721,0.00013818,2]
[426830231,1782915401000,152.44,0.0002863,30]
[426830230,1782915401000,160.21,0.0002863,30]
[426830229,1782915401000,160.79,0.0002863,30]
[426830232,1782915402000,169.16,0.00029232,30]
[426830233,1782915411000,-6379.290279,0.00014126,2]
[426830235,1782915446000,160.79,0.0002863,30]
[426830236,1782915447000,171.42,0.00029232,30]
[426830237,1782915468000,159.39,0.0002863,30]
[426830239,1782915480000,155.73,0.0002863,30]
[426830240,1782915490000,160.51,0.0002863,30]
[426830243,1782915491000,174.16,0.00029232,30]
[426830242,1782915491000,157.87,0.0002863,30]
[426830241,1782915491000,160.43,0.0002863,30]
[426830246,1782915523000,-300.0,0.00013936,2]
[426830245,1782915523000,-600.0,0.00013844,2]
[426830244,1782915523000,-500.0,0.00013753,2]
[426830247,1782915536000,160.41,0.0002863,30]
[426830248,1782915536000,157.42,0.0002863,30]
[426830249,1782915536000,150.52,0.00029232,30]
[426830253,1782915546000,-1100.0,0.0001412,2]
[426830252,1782915546000,-300.0,0.00014067,2]
[426830251,1782915546000,-600.0,0.00014014,2]
[426830250,1782915546000,-600.0,0.00014014,2]
[426830254,1782915569000,160.79,0.0002863,30]
[426830255,1782915583000,160.43,0.0002863,30]
[426830256,1782915584000,156.32,0.00029232,30]
[426830257,1782915603000,155.76,0.0002863,30]
[426830258,1782915611000,160.35,0.0002863,30]
[426830260,1782915670000,159.87,0.0002863,30]
[426830261,1782915675000,156.28,0.0002863,30]
[426830262,1782915693000,640474.0,0.000301,30]
[426830264,1782915737000,160.19,0.0002863,30]
[426830265,1782915742000,156.66,0.0002863,30]
[426830266,1782915760000,156.91,0.0002863,30]
[426830268,1782915801000,160.35,0.0002863,30]
[426830269,1782915829000,156.34,0.0002863,30]
[426830270,1782915865000,160.19,0.0002863,30]
[426830279,1782915885000,150.0,0.00014125,15]
[426830277,1782915885000,150.0,0.00014125,15]
[426830275,1782915885000,150.0,0.00014125,15]
[426830278,1782915885000,150.0,0.00014125,15]
[426830274,1782915885000,150.0,0.00014125,15]
[426830272,1782915885000,150.0,0.00014125,15]
[426830273,1782915885000,150.0,0.00014125,15]
[426830276,1782915885000,150.0,0.00014125,15]
[426830280,1782915885000,150.0,0.00014125,15]
[426830271,1782915885000,150.0,0.00014125,15]
[426830285,1782915885000,150.0,0.00014125,15]
[426830289,1782915885000,150.0,0.00014125,15]
[426830290,1782915885000,150.0,0.00014125,15]
[426830287,1782915885000,150.0,0.00014125,15]
[426830288,1782915885000,150.0,0.00014125,15]
[426830282,1782915885000,150.0,0.00014125,15]
[426830284,1782915885000,150.0,0.00014125,15]
[426830283,1782915885000,150.0,0.00014125,15]
[426830281,1782915885000,150.0,0.00014125,15]
[426830286,1782915885000,150.0,0.00014125,15]
[426830291,1782915886000,431471.0,0.000301,30]
[426830292,1782915895000,156.31,0.0002863,30]
[426830295,1782915967000,156.91,0.0002863,30]
[426830297,1782916026000,155.93118,0.00030025,30]
[426830298,1782916037000,156.31,0.0002863,30]
[426830300,1782916140000,2000.0,0.00030136,30]
[426830302,1782916140000,2000.0,0.00028491,60]
[426830301,1782916140000,2000.0,0.00030133,120]
[426830349,1782916232000,-1709.24505934,0.00013387,2]
[426830314,1782916232000,-233.42027871,0.00013325,2]
[426830316,1782916232000,-127.08111167,0.00013325,2]
[426830318,1782916232000,-163.89,0.00013325,2]
[426830320,1782916232000,-150.0,0.00013325,2]
[426830322,1782916232000,-250.0,0.00013325,2]
[426830327,1782916232000,-1000.0,0.00013325,2]
[426830329,1782916232000,-1000.0,0.00013325,2]
[426830331,1782916232000,-1000.0,0.00013325,2]
[426830334,1782916232000,-1000.0,0.00013325,2]
[426830336,1782916232000,-1000.0,0.00013325,2]
[426830325,1782916232000,-1000.0,0.00013325,2]
[426830346,1782916232000,-500.0,0.00013387,2]
[426830338,1782916232000,-1000.0,0.00013325,2]
[426830342,1782916232000,-2160.16494066,0.00013387,2]
[426830354,1782916232000,-517.7409827,0.00013498,2]
[426830352,1782916232000,-200.0,0.0001348,2]
[426830357,1782916232000,-150.0,0.0001352,2]
[426830359,1782916232000,-314.53,0.0001376,2]
[426830358,1782916232000,-200.0,0.00013699,2]
[426830361,1782916232000,-1043.59,0.00013793,2]
[426830363,1782916232000,-11118.76395796,0.00014025,2]
[426830365,1782916232000,-300.0,0.00014025,2]
[426830383,1782916232000,-782.84534296,0.00014025,2]
[426830340,1782916232000,-150.0,0.00013386,2]
[426830420,1782916238000,-1721.68897127,0.00014025,2]
[426830421,1782916238000,-15532.88413803,0.00014025,2]
[426830428,1782916240000,-300.13246974,0.00014025,2]
[426830430,1782916240000,-931.19865157,0.00014025,2]
[426830431,1782916240000,-2583.18911662,0.00014025,2]
[426830429,1782916240000,-8970.29987641,0.00014025,2]
[426830442,1782916241000,-2788.19797476,0.00014025,2]
[426830437,1782916241000,-989.475555,0.00014025,2]
[426830436,1782916241000,-3190.3355814,0.00014025,2]
[426830435,1782916241000,-1406.49410988,0.00014025,2]
[426830434,1782916241000,-2932.05287463,0.00014025,2]
[426830433,1782916241000,-13246.632,0.00014025,2]
[426830432,1782916241000,-1805.74505683,0.00014025,2]
[426830455,1782916246000,-366.66452026,0.00014025,2]
[426830456,1782916246000,-2129.73059118,0.00014025,2]
[426830458,1782916246000,-312.13518682,0.00014025,2]
[426830460,1782916246000,-6183.74410109,0.00014025,2]
[426830457,1782916246000,-669.9701833,0.00014025,2]
[426830464,1782916246000,-500.0,0.00014123,2]
[426830463,1782916246000,-500.0,0.00014123,2]
[426830462,1782916246000,-500.0,0.00014123,2]
[426830459,1782916246000,-381800.07254029,0.00014025,2]
[426830461,1782916246000,-187.37826109,0.00014123,2]
[426830465,1782916246000,-500.0,0.00014123,2]
[426830468,1782916247000,-500.0,0.00014123,2]
[426830486,1782916247000,-500.0,0.00014123,2]
[426830483,1782916247000,-500.0,0.00014123,2]
[426830493,1782916247000,-448.35325407,0.00014124,2]
[426830492,1782916247000,-500.0,0.00014123,2]
[426830484,1782916247000,-500.0,0.00014123,2]
[426830482,1782916247000,-500.0,0.00014123,2]
[426830480,1782916247000,-500.0,0.00014123,2]
[426830478,1782916247000,-500.0,0.00014123,2]
[426830481,1782916247000,-500.0,0.00014123,2]
[426830479,1782916247000,-208.82935022,0.00014123,2]
[426830489,1782916247000,-500.0,0.00014123,2]
[426830473,1782916247000,-500.0,0.00014123,2]
[426830477,1782916247000,-500.0,0.00014123,2]
[426830476,1782916247000,-500.0,0.00014123,2]
[426830474,1782916247000,-500.0,0.00014123,2]
[426830471,1782916247000,-500.0,0.00014123,2]
[426830472,1782916247000,-500.0,0.00014123,2]
[426830467,1782916247000,-500.0,0.00014123,2]
[426830470,1782916247000,-500.0,0.00014123,2]
[426830466,1782916247000,-500.0,0.00014123,2]
[426830475,1782916247000,-500.0,0.00014123,2]
[426830487,1782916247000,-500.0,0.00014123,2]
[426830504,1782916247000,-500.0,0.00014124,2]
[426830512,1782916247000,-17469.89625292,0.00014125,15]
[426830509,1782916247000,-500.0,0.00014124,2]
[426830511,1782916247000,-500.0,0.00014124,2]
[426830505,1782916247000,-500.0,0.00014124,2]
[426830507,1782916247000,-500.0,0.00014124,2]
[426830510,1782916247000,-500.0,0.00014124,2]
[426830508,1782916247000,-500.0,0.00014124,2]
[426830506,1782916247000,-597.49437182,0.00014124,2]
[426830503,1782916247000,-500.0,0.00014124,2]
[426830485,1782916247000,-500.0,0.00014123,2]
[426830490,1782916247000,-500.0,0.00014123,2]
[426830502,1782916247000,-500.0,0.00014124,2]
[426830499,1782916247000,-452.50050251,0.00014124,2]
[426830495,1782916247000,-500.0,0.00014124,2]
[426830494,1782916247000,-500.0,0.00014124,2]
[426830500,1782916247000,-500.0,0.00014124,2]
[426830497,1782916247000,-226.10964558,0.00014124,2]
[426830498,1782916247000,-500.0,0.00014124,2]
[426830496,1782916247000,-500.0,0.00014124,2]
[426830491,1782916247000,-612.09215002,0.00014123,2]
[426830488,1782916247000,-500.0,0.00014123,2]
[426830501,1782916247000,-471.76574456,0.00014124,2]
[426830514,1782916273000,1750000.0,0.000301,30]
[426830513,1782916273000,3277.46,0.00029764,30]
[426830515,1782916301000,150.01,0.0002863,30]
[426830516,1782916301000,150.01,0.00029383,30]
[426830517,1782916302000,150.07,0.00030136,30]
[426830519,1782916331000,155.93118,0.00029525,30]
[426830518,1782916331000,306.78398592,0.00030136,120]
[426830520,1782916395000,358.0,0.00030136,30]
[426830532,1782916516000,9497.56744228,0.0003013,30]
[426830543,1782917024000,153.58,0.00012964,2]
[426830544,1782917129000,153.89434074,0.00012985,2]
[426830548,1782917231000,150.0,0.00012976,2]
[426830617,1782917432000,-500.0,0.00014015,2]
[426830615,1782917432000,-500.0,0.00014015,2]
[426830614,1782917432000,-500.0,0.00014015,2]
[426830604,1782917432000,-145.7853884,0.00014015,2]
[426830605,1782917432000,-354.2146116,0.00014015,2]
[426830603,1782917432000,-500.0,0.00014015,2]
[426830607,1782917432000,-469.21167904,0.00014015,2]
[426830631,1782917432000,-500.0,0.00014015,2]
[426830610,1782917432000,-500.0,0.00014015,2]
[426830612,1782917432000,-500.0,0.00014015,2]
[426830606,1782917432000,-30.78832096,0.00014015,2]
[426830608,1782917432000,-500.0,0.00014015,2]
[426830602,1782917432000,-358.7066029,0.00014015,2]
[426830611,1782917432000,-500.0,0.00014015,2]
[426830613,1782917432000,-526.14174041,0.00014015,2]
[426830620,1782917432000,-500.0,0.00014015,2]
[426830624,1782917432000,-500.0,0.00014015,2]
[426830626,1782917432000,-500.0,0.00014015,2]
[426830628,1782917432000,-500.0,0.00014015,2]
[426830609,1782917432000,-500.0,0.00014015,2]
[426830600,1782917432000,-500.0,0.00014015,2]
[426830597,1782917432000,-500.0,0.00014015,2]
[426830599,1782917432000,-500.0,0.00014015,2]
[426830578,1782917432000,-1957.64,0.00013012,2]
[426830580,1782917432000,-2729.4,0.00013072,2]
[426830579,1782917432000,-500.0,0.00013042,2]
[426830583,1782917432000,-251.62,0.00013127,2]
[426830582,1782917432000,-150.0,0.00013079,2]
[426830581,1782917432000,-250.0,0.00013075,2]
[426830585,1782917432000,-162.63,0.00013245,2]
[426830594,1782917432000,-963.4878354,0.00014015,2]
[426830593,1782917432000,-166.66,0.00013908,2]
[426830598,1782917432000,-500.0,0.00014015,2]
[426830584,1782917432000,-200.0,0.00013161,2]
[426830591,1782917432000,-200.0,0.00013699,2]
[426830588,1782917432000,-700.01106684,0.00013495,2]
[426830587,1782917432000,-166.66,0.00013464,2]
[426830592,1782917432000,-1400.0,0.00013699,2]
[426830586,1782917432000,-390.76309889,0.00013316,2]
[426830590,1782917432000,-150.0,0.00013655,2]
[426830595,1782917432000,-491.29986354,0.00014015,2]
[426830596,1782917432000,-178.04280161,0.00014015,2]
[426830601,1782917432000,-141.2933971,0.00014015,2]
[426830589,1782917432000,-2270.217583,0.00013599,2]
[426830622,1782917432000,-500.0,0.00014015,2]
[426830616,1782917432000,-500.0,0.00014015,2]
[426830619,1782917432000,-500.0,0.00014015,2]
[426830653,1782917432000,-302.92736,0.00014114,2]
[426830654,1782917432000,-13.82299175,0.00014114,2]
[426830655,1782917432000,-448.18762285,0.00014114,2]
[426830657,1782917432000,-248.18762285,0.00014114,2]
[426830656,1782917432000,-51.81237715,0.00014114,2]
[426830658,1782917432000,-251.81237715,0.00014114,2]
[426830659,1782917432000,-500.0,0.00014114,2]
[426830662,1782917432000,-518.24606027,0.00014114,2]
[426830665,1782917432000,-158.46158591,0.00014115,2]
[426830651,1782917432000,-24.90536215,0.00014114,2]
[426830664,1782917432000,-430.23602119,0.00014114,2]
[426830661,1782917432000,-500.0,0.00014114,2]
[426830663,1782917432000,-500.0,0.00014114,2]
[426830667,1782917432000,-239.40385389,0.00014115,2]
[426830666,1782917432000,-602.1345602,0.00014115,2]
[426830668,1782917432000,-3538.009,0.00014115,2]
[426830669,1782917432000,-192.729,0.00014115,2]
[426830671,1782917432000,-344.86487342,0.00014115,2]
[426830670,1782917432000,-500.0,0.00014115,2]
[426830627,1782917432000,-500.0,0.00014015,2]
[426830660,1782917432000,-500.0,0.00014114,2]
[426830652,1782917432000,-313.84727785,0.00014114,2]
[426830646,1782917432000,-668.56784026,0.00014095,2]
[426830639,1782917432000,-1713.71715547,0.00014016,2]
[426830621,1782917432000,-500.0,0.00014015,2]
[426830629,1782917432000,-500.0,0.00014015,2]
[426830630,1782917432000,-500.0,0.00014015,2]
[426830632,1782917432000,-500.0,0.00014015,2]
[426830634,1782917432000,-1551.60335566,0.00014016,2]
[426830636,1782917432000,-413.48160874,0.00014016,2]
[426830635,1782917432000,-584.0,0.00014016,2]
[426830638,1782917432000,-2500.0,0.00014016,2]
[426830648,1782917432000,-327.42583357,0.00014114,2]
[426830618,1782917432000,-500.0,0.00014015,2]
[426830644,1782917432000,-488.46583849,0.00014095,2]
[426830642,1782917432000,-367.37560417,0.00014016,2]
[426830637,1782917432000,-1639.2627356,0.00014016,2]
[426830643,1782917432000,-150.0,0.00014093,2]
[426830640,1782917432000,-5273.29559911,0.00014016,2]
[426830641,1782917432000,-4670.1754994,0.00014016,2]
[426830645,1782917432000,-621.18047633,0.00014095,2]
[426830650,1782917432000,-475.09463785,0.00014114,2]
[426830647,1782917432000,-599.78622579,0.00014114,2]
[426830649,1782917432000,-172.57416643,0.00014114,2]
[426830633,1782917432000,-499.99999999,0.00014015,2]
[426830623,1782917432000,-500.0,0.00014015,2]
[426830675,1782917433000,-331.00672731,0.00014115,2]
[426830673,1782917433000,-500.0,0.00014115,2]
[426830674,1782917433000,-168.99327269,0.00014115,2]
[426830678,1782917433000,-303.8818997,0.00014115,2]
[426830676,1782917433000,-500.0,0.00014115,2]
[426830677,1782917433000,-26.03184246,0.00014115,2]
[426830672,1782917433000,-500.0,0.00014115,2]
[426830703,1782917438000,-15532.88413803,0.00014016,2]
[426830702,1782917438000,-2636.03979174,0.00014016,2]
[426830701,1782917438000,-408.0,0.00014016,2]
[426830700,1782917438000,-200.0,0.00013699,2]
[426830773,1782917440000,-1040.70912086,0.00014016,2]
[426830775,1782917440000,-1122.21055532,0.00014016,2]
[426830777,1782917440000,-719.1495,0.00014016,2]
[426830774,1782917440000,-1610.8070933,0.00014016,2]
[426830779,1782917440000,-5963.5,0.00014016,2]
[426830778,1782917440000,-1195.04,0.00014016,2]
[426830776,1782917440000,-7244.91614636,0.00014016,2]
[426830780,1782917440000,-2502.91778483,0.00014016,2]
[426830784,1782917446000,-529.91490625,0.00014016,2]
[426830792,1782917451000,-1301.7610617,0.00014016,2]
[426830790,1782917451000,-3440.26703695,0.00014016,2]
[426830802,1782917452000,-506.93851576,0.00014115,2]
[426830805,1782917452000,-442.63273246,0.00014115,2]
[426830806,1782917452000,-500.0,0.00014115,2]
[426830797,1782917452000,-500.0,0.00014115,2]
[426830794,1782917452000,-13422.53966466,0.00014016,2]
[426830795,1782917452000,-155.23540603,0.00014109,2]
[426830793,1782917452000,-300.0,0.00014016,2]
[426830798,1782917452000,-500.0,0.00014115,2]
[426830796,1782917452000,-170.08625784,0.00014115,2]
[426830801,1782917452000,-500.0,0.00014115,2]
[426830812,1782917452000,-192341.35088093,0.00014116,2]
[426830799,1782917452000,-496.14,0.00014115,2]
[426830800,1782917452000,-500.0,0.00014115,2]
[426830803,1782917452000,-500.0,0.00014115,2]
[426830808,1782917452000,-403.6837646,0.00014115,2]
[426830809,1782917452000,-1420.8482235,0.00014116,2]
[426830807,1782917452000,-500.0,0.00014115,2]
[426830810,1782917452000,-2518.3814188,0.00014116,2]
[426830811,1782917452000,-2632.5724471,0.00014116,2]
[426830821,1782917452000,-1192.06,0.00014116,2]
[426830820,1782917452000,-74541.33732901,0.00014116,2]
[426830804,1782917452000,-500.0,0.00014115,2]
[426830857,1782917836000,-150.0,0.00014125,15]
[426830858,1782917837000,-5000.0,0.00014125,15]
[426830859,1782917840000,-150.0,0.00014125,15]
[426830860,1782917841000,-275.57,0.00013245,2]
[426830862,1782917841000,-286.45,0.00013299,2]
[426830863,1782917841000,-228.68912086,0.0001351,7]
[426830861,1782917841000,-250.0,0.00013272,2]
[426830864,1782917842000,-150.0,0.00014125,15]
[426830865,1782917843000,-150.0,0.00014125,15]
[426830866,1782917845000,-150.0,0.00014125,15]
[426830868,1782917909000,-2500.0,0.00014125,15]
[426830870,1782917954000,-150.0,0.00014125,15]
[426830871,1782917956000,-150.0,0.00014125,15]
[426830872,1782917957000,-150.0,0.00014125,15]
[426830873,1782917958000,-150.0,0.00014125,15]
[426830874,1782917959000,-150.0,0.00014125,15]
[426830875,1782917994000,-150.0,0.00014125,15]
[426830876,1782917995000,-150.0,0.00014125,15]
[426830877,1782917996000,-150.0,0.00014125,15]
[426830878,1782917997000,-116.09574075,0.00014125,15]
[426830882,1782918330000,978.82,0.00012877,2]
[426830884,1782918443000,1203.18,0.00012757,2]
[426830885,1782918448000,1903.01,0.00012757,2]
[426830886,1782918455000,19839.86,0.00012757,2]
[426830887,1782918510000,220.45,0.00012895,2]
[426830888,1782918574000,311.06,0.00012383,2]
[426830912,1782918633000,-278.16424389,0.00013686,2]
[426830906,1782918633000,-250.0,0.00013509,2]
[426830908,1782918633000,-166.41,0.00013553,2]
[426830916,1782918633000,-500.0,0.00013808,2]
[426830901,1782918633000,-150.0,0.00013127,2]
[426830907,1782918633000,-37.94471462,0.0001351,7]
[426830904,1782918633000,-610.46,0.0001336,2]
[426830905,1782918633000,-202.51265532,0.00013419,2]
[426830902,1782918633000,-167.46,0.00013133,2]
[426830903,1782918633000,-226.0,0.00013169,2]
[426830900,1782918633000,-150.0,0.00013046,2]
[426830899,1782918633000,-250.0,0.0001304,2]
[426830898,1782918633000,-311.06,0.00013034,2]
[426830897,1782918633000,-610.46,0.00013034,2]
[426830913,1782918633000,-195.66301805,0.00013686,2]
[426830910,1782918633000,-311.06,0.00013686,2]
[426830918,1782918633000,-1813.42544971,0.00013814,2]
[426830909,1782918633000,-500.0,0.00013589,2]
[426830915,1782918633000,-241.0,0.00013726,2]
[426830911,1782918633000,-136.63273806,0.00013686,2]
[426830937,1782918633000,-1254.41808677,0.00013815,2]
[426830930,1782918633000,-168.67629402,0.00013814,2]
[426830935,1782918633000,-7831.6819009,0.00013815,2]
[426830932,1782918633000,-500.0,0.00013814,2]
[426830929,1782918633000,-500.0,0.00013814,2]
[426830926,1782918633000,-500.0,0.00013814,2]
[426830923,1782918633000,-500.0,0.00013814,2]
[426830939,1782918633000,-2957.8,0.00013815,2]
[426830927,1782918633000,-500.0,0.00013814,2]
[426830925,1782918633000,-316.56337829,0.00013814,2]
[426830924,1782918633000,-500.0,0.00013814,2]
[426830914,1782918633000,-194.92689115,0.00013715,2]
[426830921,1782918633000,-302.7698325,0.00013814,2]
[426830920,1782918633000,-500.0,0.00013814,2]
[426830919,1782918633000,-8925.48865029,0.00013814,2]
[426830917,1782918633000,-150.0,0.00013813,2]
[426830922,1782918633000,-500.0,0.00013814,2]
[426830955,1782918637000,-639.9142679,0.00013815,2]
[426830951,1782918637000,-773.99999997,0.00013815,2]
[426830952,1782918637000,-372.56534645,0.00013815,2]
[426830954,1782918637000,-590.63,0.00013815,2]
[426830950,1782918637000,-473.46198214,0.00013815,2]
[426830949,1782918637000,-4529.69331233,0.00013815,2]
[426830957,1782918637000,-508.27675191,0.00013882,2]
[426830953,1782918637000,-298.675,0.00013815,2]
[426830958,1782918637000,-281.65781777,0.00013882,2]
[426830961,1782918637000,-500.0,0.00013882,2]
[426830959,1782918637000,-221.72524623,0.00013882,2]
[426830962,1782918637000,-500.0,0.00013882,2]
[426830965,1782918637000,-500.0,0.00013882,2]
[426830963,1782918637000,-500.0,0.00013882,2]
[426830960,1782918637000,-500.0,0.00013882,2]
[426830964,1782918637000,-518.16713219,0.00013882,2]
[426830967,1782918637000,-416.06496283,0.00013882,2]
[426830966,1782918637000,-500.0,0.00013882,2]
[426830968,1782918637000,-4503.36304616,0.00013883,2]
[426830956,1782918637000,-5799.87739228,0.00013815,2]
[426830984,1782918639000,-968.53788495,0.00013883,2]
[426830985,1782918640000,-7738.93650204,0.00013883,2]
[426831056,1782918642000,-300.0,0.00013783,2]
[426831055,1782918642000,-1000.0,0.00013783,2]
[426831083,1782918646000,-1196.40290308,0.00013783,2]
[426831082,1782918646000,-6120.64320465,0.00013783,2]
[426831091,1782919018000,244.18,0.00012993,2]
[426831092,1782919050000,939.42,0.0001295,2]
[426831094,1782919227000,176.36,0.00012982,2]
[426831098,1782919696000,-1500.0,0.00013464,15]
[426831100,1782919822000,469.71,0.00012872,2]
[426831101,1782919825000,346.62,0.00012652,2]
[426831124,1782919831000,-346.62,0.00013318,2]
[426831126,1782919831000,-222.43564085,0.00013318,2]